bitfinex/quotes_BTCUSD_20240902
["timestamp","ask_amount","ask_price","bid_price","bid_amount"]
[1725275737593,0.170544,58636.0,58632.0,0.002]
[1725275737815,0.170546,58635.0,58632.0,0.172552]
[1725275738026,0.36606468,58637.0,58632.0,0.002]
[1725275738027,0.511656,58633.0,58632.0,0.002]
[1725275738235,1.844197,58633.0,58632.0,0.002]
[1725275738441,1.765197,58633.0,58632.0,0.001]
[1725275738871,1.791965,58633.0,58632.0,0.001]
[1725275739111,1.315501,58633.0,58632.0,0.001]
[1725275739583,1.315501,58633.0,58632.0,0.002]
[1725275739813,1.17047189,58633.0,58632.0,0.002]
[1725275740024,1.08827189,58633.0,58632.0,0.002]
[1725275740656,1.08827189,58633.0,58632.0,0.001]
[1725275740891,0.62819189,58633.0,58632.0,0.001]
[1725275741094,0.62819189,58633.0,58632.0,0.002]
[1725275741309,0.19732,58633.0,58632.0,0.002]
[1725275742819,0.026768,58633.0,58632.0,1.195885]
[1725275743040,0.00816,58652.0,58640.0,1.193724]
[1725275743449,0.02504557,58646.0,58640.0,1.216724]
[1725275744748,0.02504557,58646.0,58640.0,1.218724]
[1725275745376,0.02504557,58646.0,58640.0,1.221724]
[1725275746207,0.02676208,58642.0,58640.0,1.221724]
[1725275750839,0.02504557,58646.0,58640.0,1.221724]
[1725275752512,0.02504557,58646.0,58628.0,0.0816]
[1725275752513,0.257657,58641.0,58621.0,0.0644]
[1725275752760,3.21729052,58640.0,58622.0,0.50540786]
[1725275752956,3.21729052,58640.0,58615.0,0.1469]
[1725275752957,0.002,58636.0,58616.0,0.341198]
[1725275753188,0.170556,58632.0,58620.0,0.170589]
[1725275753624,0.170553,58633.0,58621.0,0.170586]
[1725275753831,1.085426,58633.0,58621.0,0.170586]
[1725275754036,0.568358,58632.0,58621.0,0.170586]
[1725275754722,0.738915,58632.0,58620.0,0.170589]
[1725275754928,0.170557,58632.0,58621.0,0.001]
[1725275755171,0.170557,58632.0,58621.0,0.002]
[1725275755641,0.170557,58632.0,58621.0,0.001]
[1725275756484,0.170557,58632.0,58620.0,0.170589]
[1725275756697,0.02488075,58634.0,58620.0,0.170589]
[1725275756698,0.170558,58631.0,58620.0,0.170589]
[1725275756990,0.002,58625.0,58602.0,0.0640965]
[1725275757195,0.513752,58622.0,58621.0,0.001]
[1725275757420,0.004,58632.0,58609.0,0.50540786]
[1725275757421,0.004,58632.0,58620.0,0.170588]
[1725275757625,0.02488075,58634.0,58625.0,0.170575]
[1725275757835,0.1305,58633.0,58626.0,0.170571]
[1725275758041,0.1305,58633.0,58624.0,0.341152]
[1725275758278,0.009,58632.0,58625.0,0.170574]
[1725275758491,0.009,58632.0,58623.0,0.170579]
[1725275758698,0.009,58632.0,58624.0,0.170577]
[1725275758915,0.004,58632.0,58624.0,0.170577]
[1725275759133,0.004,58632.0,58626.0,0.001]
[1725275759585,0.178552,58633.0,58626.0,0.001]
[1725275760451,0.170552,58633.0,58625.0,0.170575]
[1725275760662,0.006,58632.0,58625.0,0.170575]
[1725275760894,0.012,58632.0,58625.0,0.170575]
[1725275761103,0.182555,58632.0,58625.0,0.170575]
[1725275761325,0.006,58632.0,58627.0,0.170568]
[1725275761535,0.006,58632.0,58625.0,0.511719]
[1725275761748,0.176555,58632.0,58626.0,0.170572]
[1725275762796,0.176555,58632.0,58627.0,0.170569]
[1725275762797,0.02676916,58631.0,58627.0,0.170569]
[1725275763011,0.02676916,58631.0,58627.0,0.171569]
[1725275763217,0.19732716,58631.0,58627.0,0.171569]
[1725275764293,0.20232716,58631.0,58627.0,0.172569]
[1725275764498,0.20232716,58631.0,58627.0,0.001]
[1725275764499,0.170564,58629.0,58627.0,0.001]
[1725275764733,0.03176916,58631.0,58614.0,0.170606]
[1725275764734,0.170596,58618.0,58614.0,0.170606]
[1725275764964,0.03176916,58631.0,58609.0,0.0818]
[1725275764965,0.170591,58620.0,58615.0,0.170603]
[1725275765184,0.170593,58619.0,58615.0,0.170604]
[1725275765414,0.170593,58619.0,58616.0,0.170601]
[1725275765631,0.0267729,58619.0,58613.0,0.341216]
[1725275765843,0.0267729,58619.0,58594.0,0.351331]
[1725275765844,0.31499,58618.0,58605.0,0.077]
[1725275766111,0.31499,58618.0,58604.0,0.402268]
[1725275766112,0.341215,58614.0,58606.0,0.341257]
[1725275766329,0.170617,58611.0,58608.0,0.170624]
[1725275766538,0.341163,58623.0,58606.0,0.17063]
[1725275766741,0.341163,58623.0,58604.0,0.170634]
[1725275766742,0.341239,58610.0,58604.0,0.170634]
[1725275766957,0.170622,58609.0,58605.0,0.170633]
[1725275767158,0.170622,58609.0,58606.0,0.17063]
[1725275767458,0.19739876,58609.0,58606.0,0.17063]
[1725275767689,0.02677676,58609.0,58604.0,0.170634]
[1725275767899,0.170626,58608.0,58604.0,0.170634]
[1725275768123,0.02677676,58609.0,58602.0,0.0008965]
[1725275768331,0.02677676,58609.0,58587.0,0.40467]
[1725275768332,0.341281,58603.0,58587.0,0.40467]
[1725275768545,0.341281,58603.0,58582.0,0.50540786]
[1725275768546,0.170671,58592.0,58582.0,0.50540786]
[1725275768768,0.170671,58592.0,58583.0,0.341395]
[1725275769446,0.170671,58592.0,58586.0,0.170688]
[1725275769862,0.170671,58592.0,58585.0,0.17069]
[1725275770082,0.512014,58592.0,58585.0,0.17069]
[1725275770292,0.170671,58592.0,58583.0,0.341395]
[1725275770499,0.170671,58592.0,58586.0,0.512064]
[1725275770710,0.170671,58592.0,58591.0,0.0018976]
[1725275770932,0.173671,58592.0,58591.0,0.0018976]
[1725275771142,0.170671,58592.0,58591.0,0.0018976]
[1725275771403,0.518014,58592.0,58591.0,0.0008976]
[1725275771583,0.524014,58592.0,58591.0,0.0008976]
[1725275771830,0.518014,58592.0,58591.0,0.0008976]
[1725275772048,0.512014,58592.0,58591.0,0.0008976]
[1725275772469,0.513014,58592.0,58591.0,0.0008976]
[1725275773747,0.512014,58592.0,58591.0,0.0008976]
[1725275774161,0.53675115,58592.0,58591.0,0.0008976]
[1725275774577,0.87309415,58592.0,58591.0,0.0008976]
[1725275775049,0.87809415,58592.0,58591.0,0.0008976]
[1725275779164,1.21943715,58592.0,58591.0,0.0008976]
[1725275779379,1.21943715,58592.0,58581.0,0.2352986]
[1725275779380,0.17069,58586.0,58581.0,0.4060006]
[1725275779602,0.17069,58586.0,58582.0,0.023]
[1725275779785,0.17069,58586.0,58582.0,0.1937]
[1725275780240,0.02678396,58586.0,58583.0,0.170697]
[1725275781199,0.19747296,58586.0,58583.0,0.170697]
[1725275781414,0.170692,58585.0,58581.0,0.5767026]
[1725275781623,0.170693,58585.0,58581.0,0.2353006]
[1725275782347,0.2179136,58586.0,58582.0,0.1707]
[1725275783768,0.0472236,58586.0,58581.0,0.0008976]
[1725275783971,0.170696,58584.0,58581.0,0.0008976]
[1725275784177,0.170698,58583.0,58581.0,0.0008976]
[1725275785149,0.512078,58585.0,58581.0,0.0008976]
[1725275785373,0.170695,58584.0,58581.0,0.0008976]
[1725275785611,0.170695,58584.0,58581.0,0.1716006]
[1725275786230,0.170695,58584.0,58581.0,0.0008976]
[1725275787504,0.170695,58584.0,58581.0,0.1715996]
[1725275787718,0.341384,58585.0,58581.0,0.1715996]
[1725275787719,0.2179136,58586.0,58583.0,0.170697]
[1725275787937,0.2179136,58586.0,58585.0,0.0773]
[1725275787938,0.0472236,58586.0,58585.0,0.0773]
[1725275788186,0.0472236,58586.0,58585.0,0.589376]
[1725275790051,0.0472236,58586.0,58585.0,0.247992]
[1725275792417,0.0472236,58586.0,58585.0,0.589376]
[1725275793798,0.0472236,58586.0,58585.0,0.653776]
[1725275796810,0.0472236,58586.0,58585.0,0.576476]
[1725275803892,0.0472236,58586.0,58585.0,0.5773747]
[1725275804874,0.0472236,58586.0,58585.0,0.0008987]
[1725275805101,0.0472236,58586.0,58585.0,0.1715907]
[1725275805564,0.0472236,58586.0,58585.0,0.0008987]
[1725275806311,0.2179126,58586.0,58585.0,0.0008987]
[1725275808750,0.0472236,58586.0,58585.0,0.0008987]
[1725275808965,0.2179126,58586.0,58585.0,0.0008987]
[1725275809204,0.5592906,58586.0,58585.0,0.0008987]
[1725275809381,0.2179126,58586.0,58585.0,0.0008987]
[1725275812397,0.2179126,58586.0,58568.0,0.008976]
[1725275812398,0.512154,58576.0,58568.0,0.008976]
[1725275812610,0.86759,58576.0,58568.0,0.008976]
[1725275812822,0.518354,58576.0,58568.0,0.008976]
[1725275813263,1.05585359,58576.0,58568.0,0.008976]
[1725275813495,0.93938059,58576.0,58568.0,0.008976]
[1725275813731,0.91476159,58576.0,58568.0,0.008976]
[1725275813943,1.25619759,58576.0,58568.0,0.008976]
[1725275814164,0.84849759,58576.0,58568.0,0.008976]
[1725275814380,0.78030759,58576.0,58568.0,0.008976]
[1725275814589,0.76612059,58576.0,58568.0,0.008976]
[1725275815225,0.79483302,58576.0,58568.0,0.008976]
[1725275815670,0.78583302,58576.0,58568.0,0.008976]
[1725275816405,1.12726902,58576.0,58568.0,0.008976]
[1725275817088,1.15663017,58576.0,58568.0,0.008976]
[1725275817735,1.16163017,58576.0,58568.0,0.008976]
[1725275817947,1.13226902,58576.0,58568.0,0.008976]
[1725275818191,1.12726902,58576.0,58568.0,0.008976]
[1725275818611,1.13326902,58576.0,58568.0,0.008976]
[1725275819723,1.33945902,58576.0,58568.0,0.008976]
[1725275819929,1.20245902,58576.0,58568.0,0.008976]
[1725275820164,1.19645902,58576.0,58568.0,0.008976]
[1725275820618,1.20445902,58576.0,58568.0,0.008976]
[1725275821062,1.19645902,58576.0,58568.0,0.008976]
[1725275821306,1.54689502,58576.0,58568.0,0.008976]
[1725275821524,1.20545902,58576.0,58568.0,0.008976]
[1725275822183,1.54689502,58576.0,58568.0,0.008976]
[1725275822411,1.20545902,58576.0,58568.0,0.008976]
[1725275822635,1.54689502,58576.0,58568.0,0.008976]
[1725275823098,1.20545902,58576.0,58573.0,0.0672]
[1725275823323,1.19645902,58576.0,58573.0,0.0672]
[1725275823531,1.20645902,58576.0,58573.0,0.0672]
[1725275827130,1.30467039,58576.0,58573.0,0.0672]
[1725275828031,1.20645902,58576.0,58573.0,0.0672]
[1725275830423,0.91009402,58576.0,58573.0,0.0672]
[1725275830637,1.49141302,58576.0,58573.0,0.0672]
[1725275832406,0.853605,58575.0,58574.0,0.0042594]
[1725275832601,1.119386,58575.0,58574.0,0.0042594]
[1725275833719,1.007277,58575.0,58574.0,0.0042594]
[1725275835806,0.009,58575.0,58574.0,0.5164314]
[1725275836027,0.009,58575.0,58574.0,0.6681314]
[1725275836432,0.009,58575.0,58574.0,1.0095794]
[1725275836913,0.04650402,58576.0,58575.0,0.170721]
[1725275837138,0.04650402,58576.0,58575.0,0.161721]
[1725275838036,0.04650402,58576.0,58575.0,0.160721]
[1725275839839,0.04750402,58576.0,58575.0,0.160721]
[1725275841313,0.04832102,58576.0,58575.0,0.160721]
[1725275841527,0.02152943,58576.0,58575.0,0.160721]
[1725275841739,0.02152943,58576.0,58575.0,0.227021]
[1725275841964,0.02152943,58576.0,58575.0,0.568463]
[1725275843533,0.02152943,58576.0,58574.0,0.0042594]
[1725275843534,0.853605,58575.0,58574.0,0.0042594]
[1725275843777,1.846757,58575.0,58574.0,0.0042594]
[1725275844004,0.853605,58575.0,58574.0,0.0042594]
[1725275844450,0.955805,58575.0,58574.0,0.0042594]
[1725275844666,0.98259628,58575.0,58574.0,0.0042594]
[1725275845983,1.12467528,58575.0,58574.0,0.0042594]
[1725275846919,1.13367528,58575.0,58574.0,0.0052594]
[1725275847343,1.12467528,58575.0,58574.0,0.0042594]
[1725275847742,1.13567528,58575.0,58574.0,0.0052594]
[1725275848164,1.12467528,58575.0,58574.0,0.0042594]
[1725275849436,1.13367528,58575.0,58574.0,0.0052594]
[1725275850061,1.12467528,58575.0,58574.0,0.0042594]
[1725275850504,1.46611728,58575.0,58574.0,0.0042594]
[1725275850714,1.47711728,58575.0,58574.0,0.0052594]
[1725275851341,1.62098431,58575.0,58574.0,0.0042594]
[1725275851551,1.62098431,58575.0,58568.0,0.008976]
[1725275851552,1.195169,58569.0,58568.0,0.008976]
[1725275851785,1.195169,58569.0,58567.0,0.008976]
[1725275851786,0.512224,58568.0,58567.0,0.008976]
[1725275851991,1.450162,58568.0,58567.0,0.008976]
[1725275852411,1.13547252,58568.0,58567.0,0.008976]
[1725275853488,1.13747252,58568.0,58567.0,0.008976]
[1725275853697,1.110679,58568.0,58567.0,0.008976]
[1725275854792,1.032179,58568.0,58567.0,0.008976]
[1725275855218,1.05226651,58568.0,58567.0,0.008976]
[1725275857674,0.87579451,58568.0,58567.0,0.008976]
[1725275859778,1.00916551,58568.0,58567.0,0.008976]
[1725275860181,0.87579451,58568.0,58567.0,0.008976]
[1725275861160,1.00916551,58568.0,58567.0,0.008976]
[1725275861389,1.03595867,58568.0,58567.0,0.008976]
[1725275861685,0.90258767,58568.0,58567.0,0.008976]
[1725275861883,1.11745867,58568.0,58567.0,0.008976]
[1725275862088,0.90258767,58568.0,58567.0,0.008976]
[1725275865341,0.73184667,58568.0,58567.0,0.008976]
[1725275865545,0.90258767,58568.0,58567.0,0.008976]
[1725275867004,0.90340467,58568.0,58567.0,0.008976]
[1725275867523,0.87661151,58568.0,58567.0,0.008976]
[1725275867986,0.53512851,58568.0,58567.0,0.008976]
[1725275868791,0.53512851,58568.0,58567.0,0.072176]
[1725275869329,0.53512851,58568.0,58567.0,0.150376]
[1725275870795,0.04969756,58568.0,58567.0,0.150376]
[1725275871171,0.04969756,58568.0,58567.0,0.662609]
[1725275871394,0.04969756,58568.0,58567.0,1.004098]
[1725275871974,0.02090451,58568.0,58567.0,1.368587]
[1725275872414,0.02290451,58568.0,58567.0,1.368587]
[1725275872868,0.02090451,58568.0,58567.0,1.368587]
[1725275873289,0.02190451,58568.0,58567.0,1.369587]
[1725275873732,0.02190451,58568.0,58567.0,1.368587]
[1725275873733,0.02090451,58568.0,58567.0,1.368587]
[1725275875593,0.02190451,58568.0,58567.0,1.369587]
[1725275876008,0.001817,58568.0,58567.0,1.369587]
[1725275876254,0.0286079,58568.0,58567.0,1.369587]
[1725275877442,0.001817,58568.0,58567.0,1.369587]
[1725275877638,0.001817,58568.0,58567.0,1.711076]
[1725275878727,0.000817,58575.0,58567.0,1.711076]
[1725275878728,0.000817,58575.0,58574.0,1.195068]
[1725275878896,0.000817,58575.0,58574.0,1.364568]
[1725275879108,0.000817,58575.0,58574.0,1.363568]
[1725275879474,0.000817,58575.0,58574.0,1.705016]
[1725275879922,0.001817,58575.0,58574.0,1.706016]
[1725275880488,0.02860294,58575.0,58574.0,1.706016]
[1725275881304,0.02760294,58575.0,58574.0,1.705016]
[1725275881703,0.02860294,58575.0,58574.0,1.714016]
[1725275882399,0.02860294,58575.0,58574.0,1.705016]
[1725275882400,0.02760294,58575.0,58574.0,1.705016]
[1725275882619,0.02860294,58575.0,58574.0,1.718016]
[1725275886405,0.02860294,58575.0,58574.0,1.376568]
[1725275887414,0.001817,58575.0,58574.0,1.376568]
[1725275890358,0.001817,58575.0,58574.0,1.3774667]
[1725275891819,0.001817,58575.0,58574.0,1.7189147]
[1725275894579,0.47,58595.0,58574.0,1.7189147]
[1725275894786,0.170669,58593.0,58591.0,0.170674]
[1725275895206,0.39244047,58601.0,58589.0,0.341357]
[1725275895207,0.170665,58595.0,58589.0,0.341357]
[1725275895428,0.02678356,58593.0,58591.0,0.170674]
[1725275895656,0.02678356,58593.0,58590.0,0.341352]
[1725275895657,0.19745256,58593.0,58590.0,0.170676]
[1725275895875,0.02678356,58593.0,58591.0,0.170672]
[1725275896753,0.03278356,58593.0,58591.0,0.171672]
[1725275897398,0.20345256,58593.0,58591.0,0.001]
[1725275897643,0.20345256,58593.0,58591.0,0.171674]
[1725275897854,0.20345256,58593.0,58591.0,0.170674]
[1725275898076,0.19745256,58593.0,58591.0,0.170674]
[1725275898264,0.20245256,58593.0,58591.0,0.170674]
[1725275898955,0.20245256,58593.0,58590.0,0.170676]
[1725275899176,0.03178356,58593.0,58591.0,0.170673]
[1725275899391,0.20245256,58593.0,58591.0,0.170674]
[1725275899971,0.03178356,58593.0,58592.0,0.170671]
[1725275900166,0.005,58593.0,58592.0,0.853357]
[1725275900574,0.005,58593.0,58592.0,1.2601]
[1725275900775,0.005,58593.0,58592.0,1.3611]
[1725275901022,0.000817,58599.0,58598.0,0.85327]
[1725275901154,0.000817,58599.0,58598.0,1.358278]
[1725275901387,0.000817,58599.0,58598.0,1.353278]
[1725275901875,0.000817,58599.0,58598.0,1.694586]
[1725275902242,0.000817,58599.0,58598.0,1.689586]
[1725275903012,0.001817,58599.0,58598.0,1.696586]
[1725275904339,0.000817,58599.0,58598.0,1.689586]
[1725275904572,0.001817,58599.0,58598.0,1.703586]
[1725275906991,0.02859215,58599.0,58598.0,1.703586]
[1725275910522,0.001817,58599.0,58598.0,1.703586]
[1725275913002,0.001817,58599.0,58598.0,2.049894]
[1725275913214,0.001817,58599.0,58598.0,2.051894]
[1725275913726,0.001817,58599.0,58598.0,2.151894]
[1725275914151,0.02677259,58606.0,58605.0,2.12188542]
[1725275914155,0.00817,58627.0,58626.0,0.170572]
[1725275914391,0.00817,58627.0,58626.0,0.919062]
[1725275914624,0.02855312,58627.0,58626.0,0.919062]
[1725275914846,0.03493192,58627.0,58626.0,1.705452]
[1725275915065,0.03493192,58627.0,58626.0,1.707452]
[1725275915525,0.03493192,58627.0,58626.0,2.048597]
[1725275915950,0.00917,58627.0,58626.0,2.25441442]
[1725275916667,0.00917,58627.0,58626.0,2.25641442]
[1725275918029,0.00917,58627.0,58626.0,2.31852185]
[1725275918248,0.00917,58627.0,58626.0,2.31847486]
[1725275918702,0.034927,58634.0,58632.0,1.541995]
[1725275918925,0.00817,58634.0,58632.0,1.809295]
[1725275920766,0.00817,58634.0,58632.0,1.821295]
[1725275921232,0.00817,58634.0,58632.0,1.809295]
[1725275921664,0.00817,58634.0,58632.0,1.823295]
[1725275922539,0.00817,58634.0,58632.0,1.809295]
[1725275922719,0.00817,58634.0,58632.0,1.807295]
[1725275923010,0.00817,58634.0,58632.0,1.809295]
[1725275923909,0.00817,58634.0,58632.0,1.823295]
[1725275924387,0.00817,58634.0,58632.0,1.809295]
[1725275924628,0.00817,58634.0,58632.0,1.802295]
[1725275924831,0.00817,58634.0,58632.0,1.821295]
[1725275925271,0.00817,58634.0,58632.0,1.807295]
[1725275925703,0.00817,58634.0,58632.0,1.821295]
[1725275927061,0.00817,58634.0,58632.0,1.807295]
[1725275927283,0.00817,58634.0,58632.0,1.821295]
[1725275927752,0.00817,58634.0,58632.0,2.174405]
[1725275928013,0.00817,58634.0,58633.0,1.629968]
[1725275928188,0.00817,58652.0,58638.0,0.867687]
[1725275928519,0.00817,58652.0,58640.0,0.528596]
[1725275928732,0.00817,58652.0,58640.0,1.454224]
[1725275928947,0.00817,58652.0,58640.0,2.159352]
[1725275930467,0.00817,58652.0,58640.0,2.157352]
[1725275931127,0.00817,58652.0,58640.0,1.456224]
[1725275931723,0.02675387,58649.0,58640.0,1.456224]
[1725275932276,0.02675387,58649.0,58640.0,1.451224]
[1725275932507,0.02675387,58649.0,58640.0,1.479224]
[1725275933365,0.02050049,58650.0,58640.0,1.479224]
[1725275934637,0.00817,58652.0,58640.0,1.479224]
[1725275935544,0.02043689,58651.0,58640.0,1.479224]
[1725275936634,0.02675387,58648.0,58640.0,1.479224]
[1725275936862,0.02675387,58648.0,58640.0,1.825288]
[1725275937630,0.02675387,58648.0,58640.0,1.830288]
[1725275940525,0.02675387,58648.0,58640.0,1.484224]
[1725275940752,0.02675387,58648.0,58640.0,1.479224]
[1725275941580,0.30690476,58657.0,58645.0,0.341032]
[1725275941751,0.17049,58655.0,58646.0,0.123]
[1725275942109,0.32650312,58657.0,58646.0,0.023]
[1725275942110,0.01959836,58657.0,58646.0,0.023]
[1725275942337,0.170486,58656.0,58649.0,0.34101]
[1725275942541,0.340971,58656.0,58651.0,0.170498]
[1725275942740,0.170488,58655.0,58652.0,0.170495]
[1725275942943,0.170485,58656.0,58652.0,0.170495]
[1725275943146,0.170485,58656.0,58651.0,0.340999]
[1725275943364,0.340966,58657.0,58651.0,0.340999]
[1725275943568,0.170486,58656.0,58653.0,0.170493]
[1725275943775,0.170482,58657.0,58653.0,0.170493]
[1725275943920,0.340965,58657.0,58652.0,0.170496]
[1725275944124,0.170489,58655.0,58652.0,0.008]
[1725275944550,0.340971,58656.0,58652.0,0.008]
[1725275944754,0.340971,58656.0,58651.0,0.170499]
[1725275944954,0.170483,58657.0,58653.0,0.170493]
[1725275945173,0.170483,58657.0,58653.0,0.177493]
[1725275945174,0.170486,58656.0,58653.0,0.177493]
[1725275945579,0.170486,58656.0,58653.0,0.007]
[1725275946102,0.170489,58655.0,58653.0,0.007]
[1725275946445,0.19723844,58656.0,58653.0,0.007]
[1725275946869,0.19723844,58656.0,58651.0,0.340996]
[1725275947298,0.19723844,58656.0,58651.0,0.348996]
[1725275947499,0.19723844,58656.0,58653.0,0.170493]
[1725275947921,0.02823666,58658.0,58654.0,0.170491]
[1725275948196,0.19871666,58658.0,58654.0,0.170491]
[1725275948598,0.170484,58657.0,58653.0,0.170493]
[1725275948742,0.19871666,58658.0,58654.0,0.17049]
[1725275948947,0.19871666,58658.0,58653.0,0.170492]
[1725275949159,0.19871666,58658.0,58654.0,0.17049]
[1725275949562,0.02823666,58658.0,58656.0,0.170485]
[1725275949774,0.02823666,58658.0,58657.0,0.511447]
[1725275950242,0.02823666,58658.0,58657.0,0.852412]
[1725275951046,0.00817,58658.0,58657.0,0.875412]
[1725275951254,0.00817,58658.0,58657.0,0.881412]
[1725275951455,0.00817,58658.0,58657.0,1.222377]
[1725275952281,0.00817,58658.0,58657.0,0.881412]
[1725275952883,1e-06,58686.0,58685.0,0.1533]
[1725275953128,1e-06,58686.0,58685.0,1.86002674]
[1725275953388,1e-06,58686.0,58685.0,2.137711]
[1725275953594,1e-06,58686.0,58685.0,1.786909]
[1725275953838,1e-06,58686.0,58685.0,1.441107]
[1725275954110,1e-06,58686.0,58685.0,1.464107]
[1725275954992,1e-06,58686.0,58685.0,1.478107]
[1725275955440,1e-06,58686.0,58685.0,0.875005]
[1725275956365,1e-06,58686.0,58685.0,1.215807]
[1725275956823,1e-06,58686.0,58685.0,1.229807]
[1725275957261,1e-06,58686.0,58685.0,1.215807]
[1725275957701,1e-06,58686.0,58685.0,1.229807]
[1725275957921,1e-06,58686.0,58685.0,0.014]
[1725275958381,0.00756104,58686.0,58685.0,0.014]
[1725275958611,1e-06,58686.0,58685.0,0.014]
[1725275958828,0.00755875,58686.0,58685.0,0.014]
[1725275959037,0.421083,58686.0,58685.0,0.014]
[1725275959259,0.44870318,58686.0,58685.0,0.525203]
[1725275959920,0.44870318,58686.0,58685.0,0.511203]
[1725275960128,0.44870318,58686.0,58685.0,0.525203]
[1725275960382,0.00756708,58686.0,58685.0,0.866005]
[1725275960609,1e-06,58686.0,58685.0,0.852005]
[1725275960820,0.00759049,58686.0,58685.0,0.852005]
[1725275961036,0.00759049,58686.0,58685.0,0.856005]
[1725275961505,0.00759049,58686.0,58685.0,0.852005]
[1725275961723,0.16565549,58686.0,58685.0,0.852005]
[1725275961963,0.00759049,58686.0,58685.0,1.199807]
[1725275962433,1e-06,58686.0,58685.0,1.199807]
[1725275963119,1e-06,58686.0,58685.0,1.192807]
[1725275963607,1e-06,58686.0,58685.0,1.199807]
[1725275964060,1e-06,58686.0,58685.0,1.215807]
[1725275964274,1e-06,58686.0,58685.0,1.223807]
[1725275964486,1e-06,58686.0,58685.0,1.2247035]
[1725275965131,1e-06,58686.0,58685.0,1.5655055]
[1725275967002,1e-06,58686.0,58685.0,2.55783435]
[1725275967201,0.00816,58692.0,58691.0,1.83417585]
[1725275967410,0.00816,58692.0,58691.0,2.19794285]
[1725275967620,0.00816,58692.0,58691.0,2.29794285]
[1725275968201,0.00816,58692.0,58691.0,2.63870985]
[1725275968403,1e-06,58692.0,58691.0,2.63870985]
[1725275968656,0.00815,58715.0,58714.0,0.510951]
[1725275968904,0.00815,58715.0,58714.0,1.215219]
[1725275969138,0.00815,58715.0,58714.0,1.555853]
[1725275969348,0.00815,58715.0,58714.0,1.215219]
[1725275969823,0.00815,58715.0,58714.0,1.798153]
[1725275970064,0.00025789,58725.0,58714.0,1.798153]
[1725275970065,0.0004,58739.0,58730.0,0.0782]
[1725275970290,0.0004,58739.0,58738.0,0.851237]
[1725275970518,0.0004,58739.0,58738.0,1.269932]
[1725275970743,0.0004,58739.0,58738.0,1.733427]
[1725275971905,0.0004,58739.0,58738.0,1.292932]
[1725275972135,0.0004,58739.0,58733.0,0.340519]
[1725275972136,0.00025789,58735.0,58733.0,0.340519]
[1725275972373,0.00025789,58735.0,58734.0,0.510776]
[1725275972831,0.00025789,58730.0,58729.0,0.340547]
[1725275973054,0.00025789,58730.0,58729.0,0.170273]
[1725275973272,0.00025789,58730.0,58729.0,0.51082]
[1725275974228,0.00025789,58734.0,58733.0,0.170262]
[1725275974437,0.00025789,58734.0,58733.0,0.510786]
[1725275975065,0.00025789,58734.0,58733.0,0.85131]
[1725275975725,0.00025789,58734.0,58733.0,1.191834]
[1725275975931,0.00025789,58738.0,58737.0,0.85125]
[1725275976385,0.00025789,58738.0,58737.0,0.17025]
[1725275976608,0.00025789,58738.0,58737.0,0.51075]
[1725275977276,0.00025789,58738.0,58737.0,0.85125]
[1725275977488,0.00025789,58738.0,58737.0,0.51075]
[1725275977700,0.00025789,58738.0,58737.0,0.51875]
[1725275977960,0.00025789,58738.0,58737.0,0.85925]
[1725275978413,0.00025789,58738.0,58737.0,0.51875]
[1725275978624,0.00025789,58738.0,58737.0,0.85925]
[1725275978828,0.00025789,58738.0,58737.0,0.51075]
[1725275979297,0.00025789,58738.0,58737.0,0.008]
[1725275979298,2.08966989,58738.0,58737.0,0.008]
[1725275979503,0.00025789,58738.0,58737.0,0.008]
[1725275979729,0.11312389,58738.0,58737.0,0.008]
[1725275979944,0.00025789,58738.0,58737.0,0.008]
[1725275980350,0.11812389,58738.0,58737.0,0.008]
[1725275980587,0.96936089,58738.0,58737.0,0.008]
[1725275980829,0.00025789,58729.0,58728.0,0.170275]
[1725275981045,0.00025789,58729.0,58714.0,0.340629]
[1725275981046,0.00025789,58720.0,58719.0,0.340605]
[1725275981260,0.00025789,58720.0,58719.0,0.510907]
[1725275981469,0.00025789,58723.0,58722.0,0.51088]
[1725275982369,0.00025789,58723.0,58712.0,0.170322]
[1725275982370,0.00025789,58713.0,58712.0,0.170322]
[1725275982580,0.00025789,58713.0,58712.0,0.510967]
[1725275982791,0.00025789,58713.0,58712.0,0.951612]
[1725275983950,0.00025789,58713.0,58712.0,0.974612]
[1725275984411,0.00025789,58715.0,58712.0,0.81429]
[1725275984653,0.00025789,58715.0,58714.0,0.170317]
[1725275984874,0.02672303,58725.0,58713.0,0.1]
[1725275984875,0.00025789,58716.0,58715.0,0.510942]
[1725275985083,0.00025789,58716.0,58715.0,0.85157]
[1725275987389,0.00025789,58716.0,58715.0,0.85857]
[1725275987617,0.00125789,58716.0,58715.0,0.85857]
[1725275988277,0.001,58716.0,58715.0,1.562826]
[1725275988433,0.001,58716.0,58715.0,1.707626]
[1725275988660,0.001,58716.0,58715.0,1.807626]
[1725275989115,0.02697947,58732.0,58731.0,1.191872]
[1725275989424,0.02697947,58732.0,58731.0,1.214872]
[1725275990293,0.02772158,58732.0,58731.0,1.215872]
[1725275990723,0.02772158,58732.0,58731.0,1.281672]
[1725275990929,0.00025789,58735.0,58734.0,1.191813]
[1725275991140,0.001214,58739.0,58738.0,0.510742]
[1725275991363,0.001214,58739.0,58738.0,1.191732]
[1725275991364,0.00147189,58739.0,58738.0,1.191732]
[1725275991585,0.00147189,58739.0,58738.0,0.851237]
[1725275991801,0.0281876,58739.0,58738.0,0.851237]
[1725275993736,0.0281876,58739.0,58738.0,0.863237]
[1725275994162,0.0281876,58739.0,58738.0,0.170247]
[1725275994368,0.0281876,58739.0,58735.0,0.510767]
[1725275994369,0.00025789,58736.0,58735.0,0.510767]
[1725275994592,0.00025789,58736.0,58735.0,0.851279]
[1725275995261,0.00025789,58736.0,58735.0,0.510767]
[1725275995473,0.00025789,58736.0,58735.0,0.170256]
[1725275995922,0.00025789,58736.0,58731.0,0.340532]
[1725275996167,0.00025789,58731.0,58730.0,0.510811]